Workbook

Sheet Исходные данные
A1: НПП "Микропроцессорные технологии"
A2: Пирогов М.Г, Илюхин Е.В., Петелин С.Д.
A3: 2018 год
A5: Исходные данные для расчета уставок защит трехобмоточного трансформатора Алтей-ОЗТ
A6: Заполнить белые ячейки, выделенные зеленой рамкой -
O8: ВН-СН | P8: ВН-НН | Q8: Y/Y/∆
K9: Параметры трансформатора | O9: =IF(OR(N10=Q9,N10=Q10),1,SQRT(3)/2) -> 0.8660254038 | P9: =IF(N10=Q11,SQRT(3)/2,1) -> 1 | Q9: Y/∆/∆
K10: Схема соединения | N10: Y/Y/∆ | Q10: ∆/∆/∆
Q11: Y/Y/Y
K12: Вид трансформатора | N12: Маслонаполненный | Q12: Маслонаполненный
Q13: Сухой
K14: Номинальная мощность трансформатора, кВА
L15: 40000
L16: 40000
L17: 40000
K18: Номинальные напряжения сторон, кВ
L19: 115
L20: 38.5
L21: 6.6
K22: Номинальные коэфициенты трансформации трансформатора
L23: =L19/L20 -> 2.987012987
L24: =L19/L21 -> 17.42424242
K25: Параметры регулирования напряжения
L26: 1.78 | M26: - шаг регулирования напряжения устройством РПН, %
L27: 9 | M27: - количество ступеней, используемых для регулирования напряжения в большую сторону
L28: 9 | M28: - количество ступеней, используемых для регулирования напряжения в меньшую сторону
K30: Параметры ТТ
K32: Коэффициент трансформации ТТ стороны ВН
L33: = | M33: 1000 | N33: / | O33: 5 | P33: = | Q33: =M33/O33 -> 200
K34: Коэффициент трансформации ТТ стороны СН
L35: = | M35: 1000 | N35: / | O35: 5 | P35: = | Q35: =M35/O35 -> 200
K36: Коэффициент трансформации ТТ стороны НН
L37: = | M37: 2000 | N37: / | O37: 5 | P37: = | Q37: =M37/O37 -> 400
K39: Режимы работы
K41: Максимальная кратность реальной длительно возможной перегрузки трансформатора (относительно номинального тока трансформатора)
A42: Тип нагрузки на стороне НН | L42: 1.4
A43: Промышленная (Uдвиг<=1000 В) | F43: Промышленная (Uдвиг<=1000 В) | G43: =IF(A43=F43,5,IF(A43=F44,2,2.5)) -> 5 | K43: Максимальная кратность тока нагрузки своей секции шин стороны СН (относительно номинального тока трансформатора)
F44: Сельская общего назначения | L44: 0.7
F45: Городская общего назначения | K45: Первичное среднее номинальное напряжение сети на стороне СН, В
A46: Роль МТЗ | L46: 35000
A47: Резервная | F47: Резервная | G47: =IF(A47="Резервная",1.2,1.5) -> 1.2 | K47: Максимальная кратность тока нагрузки своей секции шин стороны НН (относительно номинального тока трансформатора)
F48: Основная | L48: 0.7
A49: Нагрузка | G49: Введите кнб | K49: Первичное среднее номинальное напряжение сети на стороне НН, В
A50: Симметричная | G50: 0.4 | H50: Симметричная | L50: 6000
H51: Несимметричная
K52: Токи короткого замыкания, приведенные к стороне ВН
F54: Основная | K54: В точке К1 - на шинах ВН
L55: 2379.4 | M55: - максимальный ток трехфазного КЗ, А
L56: 2179.5 | M56: - минимальный ток трехфазного КЗ, А
K58: В точке К2 - на шинах СН
L59: 1317.3 | M59: - максимальный ток трехфазного КЗ, А
L60: 1002.5 | M60: - минимальный ток трехфазного КЗ, А
J62: =IF(L60<L64,O9,P9) -> 1 | K62: В точке К3 - на шинах НН
L63: 955.9 | M63: - максимальный ток трехфазного КЗ, А
L64: 712.6 | M64: - минимальный ток трехфазного КЗ, А
K66: В точке К4 - в конце зоны резервирования на стороне СН (минимальный ток КЗ)
L67: 753 | M67: - минимальный ток трехфазного КЗ, А
K69: В точке К5 - в конце зоны резервирования на стороне НН (минимальный ток КЗ)
L70: 610 | M70: - минимальный ток трехфазного КЗ, А
K72: Уставки защит с которыми производится согласование
L74: 208.9 | M74: - значение уставки срабатывания МТЗ на присоединении СВ СН, приведенное к стороне ВН, А
L75: 2 | M75: - значение уставки задержки срабатывания МТЗ на присоединении СВ СН, с
L77: 155 | M77: - значение уставки срабатывания МТЗ на присоединении СВ НН, приведенное к стороне ВН, А
L78: 2 | M78: - значение уставки задержки срабатывания МТЗ на присоединении СВ НН, с

Sheet Расчет уставок
A1: № п.п. | B1: Величина | C1: Обозначение | D1: Формула | F1: Расчет | G1: Примечание | H1: Значение для ввода в устройство
A2: 1. Выбор диапазона измерений токов
A3: 1.1 | B3: Номинальный вторичный ток стороны ВН трансформатора, А | D3: 7.1 | F3: ='Исходные данные'!L15/(3^0.5*'Исходные данные'!L19*'Исходные данные'!Q33) -> 1.004087425 | G3: - | H3: -
A4: 1.2 | B4: Номинальный ток диапазона измерений токов стороны ВН, А | D4: - | E4: - | F4: =IF(F3>1,IF(F3<=20,5,"Ошибка: ток вне диапазона 1-20. Проверьте исходные данные"),1) -> 5 | G4: В соответствии с п. 7.2.3 | H4: =F4 -> 5
A5: 1.3 | B5: Номинальный вторичный ток стороны СН трансформатора, А | D5: 7.2 | F5: ='Исходные данные'!L16/(3^0.5*'Исходные данные'!L20*'Исходные данные'!Q35) -> 2.999222178 | G5: - | H5: -
A6: 1.4 | B6: Номинальный ток диапазона измерений токов стороны СН, А | D6: - | E6: - | F6: =IF(F5>1,IF(F5<=20,5,"Ошибка: ток вне диапазона 1-20. Проверьте исходные данные"),1) -> 5 | G6: В соответствии с п. 7.2.3 | H6: =F6 -> 5
A7: 1.5 | B7: Номинальный вторичный ток стороны НН трансформатора, А | D7: 7.3 | F7: ='Исходные данные'!L17/(3^0.5*'Исходные данные'!L21*'Исходные данные'!Q37) -> 8.747731351 | G7: - | H7: -
A8: 1.6 | B8: Номинальный ток диапазона измерений токов стороны НН, А | D8: - | E8: - | F8: =IF(F7>1,IF(F7<=20,5,"Ошибка: ток вне диапазона 1-20. Проверьте исходные данные"),1) -> 5 | G8: В соответствии с п. 7.2.3 | H8: =F8 -> 5
A9: 1.7 | B9: Проверка входов измерения токов ВН | C9: - | D9: 7.4 | F9: =2*'Исходные данные'!L55/'Исходные данные'!Q33 -> 23.794 | G9: =IF(F4*100>=F9,"Условие выполняется","Условие НЕ выполняется") -> Условие выполняется | H9: -
A10: 1.8 | B10: Проверка входов измерения токов СН | C10: - | D10: 7.5 | F10: =2*'Исходные данные'!L59*'Исходные данные'!L19/('Исходные данные'!Q35*'Исходные данные'!L20) -> 39.34792208 | G10: =IF(F6*100>=F10,"Условие выполняется","Условие НЕ выполняется") -> Условие выполняется | H10: -
A11: 1.9 | B11: Проверка входов измерения токов НН | C11: - | D11: 7.6 | F11: =2*'Исходные данные'!L63*'Исходные данные'!L19/('Исходные данные'!Q37*'Исходные данные'!L21) -> 83.27916667 | G11: =IF(F8*100>=F11,"Условие выполняется","Условие НЕ выполняется") -> Условие выполняется | H11: -
A12: 2. Дифференциальная токовая защита (ДТО и ДЗТ)
A13: 2.1 | B13: Номинальный ток обмотки ВН трансформатора, А | D13: 8.3 | F13: ='Исходные данные'!L15/(3^0.5*'Исходные данные'!L19) -> 200.8174849 | G13: - | H13: -
A14: 2.2 | B14: Максимальный ток небаланса в режиме внешнего КЗ, о.е. | D14: 8.2 | F14: =(J14*J15+MAX('Исходные данные'!L27:L28)*'Исходные данные'!L26+'Расчет уставок'!J16)/100*MAX('Исходные данные'!L59,'Исходные данные'!L63)/F13 -> 3.018768312 | G14: - | H14: - | J14: 2.5
J15: 10
J16: 5
A17: 2.3 | B17: Уставка срабатывания ДТО | D17: 8.1 | F17: =F14*J17 -> 3.924398805 | G17: - | H17: - | J17: 1.3
B18: по условию отстройки от тока небаланса, о.е.
A19: 2.4 | B19: Уставка срабатывания ДТО | D19: - | E19: - | F19: 6 | G19: В соответствии с п. 8.2.4 | H19: -
B20: по условию отстройки от БТН, о.е.
A21: 2.5 | B21: Выбранное значение уставки срабатывания ДТО, о.е. | D21: - | E21: - | F21: - | G21: максимальное значение из п.п. 2.4 и 2.5 | H21: =MAX(F17:F20) -> 6
A22: 2.6 | B22: Уставка ток начала торможения первого участка ДЗТ, о.е. | D22: - | E22: - | F22: - | G22: В соответствии с п. 8.3.2 | H22: 1
A23: 2.7 | B23: Уставка ток начала торможения второго участка ДЗТ, о.е. | D23: - | E23: - | F23: =IF(CELL("содержимое",'Исходные данные'!N12)="Маслонаполненный",2,IF(CELL("содержимое",'Исходные данные'!N12)="Сухой",1.6,"Ошибка: неверно задан вид трансформатора")) -> 2 | G23: В соответствии с п. 8.3.2 | H23: =F23 -> 2
A24: 2.8 | B24: Ток небаланса, соответствующий току начала торможения первого участка, о.е. | D24: 8.5 | F24: =(J24*J25+MAX('Исходные данные'!L27:L28)*'Исходные данные'!L26+'Расчет уставок'!J26)/100*'Расчет уставок'!H22 -> 0.3102 | G24: - | H24: - | J24: 1
J25: 10
J26: 5
A27: 2.9 | B27: Уставка начального тока срабатывания ДЗТ, о.е. | D27: 8.4 | F27: =ROUNDUP(J27*F24,2) -> 0.41 | G27: - | H27: =F27 -> 0.41 | J27: 1.3
A28: 2.10 | B28: Ток небаланса, соответствующий току начала торможения второго участка, о.е. | D28: 8.8 | F28: =(J28*J29+MAX('Исходные данные'!L27:L28)*'Исходные данные'!L26+'Расчет уставок'!J30)/100*'Расчет уставок'!H23 -> 0.7204 | G28: - | H28: - | J28: 1.5
J29: 10
J30: 5
A31: 2.11 | B31: Ток срабатывания ДЗТ при токе торможения, равном току начала торможения второго участка, о.е. | D31: 8.7 | F31: =J31*F28 -> 0.93652 | G31: - | H31: - | J31: 1.3
A32: 2.12 | B32: Уставка коэффициента торможения первого участка ДЗТ | D32: 8.6 | F32: =ROUNDUP((F31-F27)/(H23-H22),2) -> 0.53 | G32: - | H32: =F32 -> 0.53
A33: 2.13 | B33: Ток торможения, соответствующий максимальному току внешнего КЗ, о.е. | D33: 8.10 | F33: =MAX('Исходные данные'!L59,'Исходные данные'!L63)/'Расчет уставок'!F13-'Расчет уставок'!F14/2 -> 5.050303614 | G33: - | H33: -
A34: 2.14 | B34: Уставка коэффициента торможения второго участка ДЗТ | D34: 8.9 | F34: =ROUNDUP((F17-F31)/(F33-H23),2) -> 0.98 | G34: - | H34: =F34 -> 0.98
A35: 2.15 | B35: Уставка задержки срабатывания ДЗТ, с | D35: - | E35: - | F35: - | G35: В соответствии с п. 8.3.7 | H35: 0
A36: 2.16 | B36: Уставка блокирования ДЗТ по второй гармонике, о.е. | D36: - | E36: - | F36: - | G36: В соответствии с п. 8.3.8 | H36: 0.15
A37: 2.17 | B37: Уставка максимальной длительности перекрестного блокирования по 2 гармонике, с | D37: - | E37: - | F37: - | G37: В соответствии с п. 8.3.9 | H37: 2
A38: 2.18 | B38: Относительное значение минимального тока КЗ на выводах трансформатора, о.е. | D38: 8.15 | F38: =(3^0.5*MIN('Исходные данные'!L60,'Исходные данные'!L64)/(2*'Расчет уставок'!F13)) -> 3.0730875 | G38: - | H38: -
A39: 2.19 | B39: Уставка срабатывания ДЗТ при минимальном токе КЗ на выводах трансформатора, о.е. | D39: 8.14 | F39: =IF(F38<=2*H22,H27,IF(F38<=2*H23,(F38/2-H22)*H32+H27,(F38/2-H23)*H34+F31)) -> 0.6943681875 | G39: - | H39: -
A40: 2.20 | B40: Коэффициент чувствительности ДЗТ | D40: 8.16 | F40: =F38/F39 -> 4.42573199 | G40: =IF(F40<2,"Низкая чувствительность","Чувствительность в норме") -> Чувствительность в норме | H40: -
A41: 2.21 | B41: Уставка тока срабатывания сигнализации небаланса, о.е. | D41: 8.18 | F41: =ROUNDUP(F24*J41,2) -> 0.33 | G41: - | H41: =F41 -> 0.33 | J41: 1.05
A42: 2.22 | B42: Уставка задержки срабатывания сигнализации небаланса, с | D42: - | E42: - | F42: - | G42: В соответствии с п. 8.4.3 | H42: 10
A43: 3. Токовая отсечка стороны ВН (ТО ВН)
A44: 3.1 | B44: Уставка тока срабатывания ТО ВН по условию отстройки от токов КЗ на сторонах СН и НН, А | D44: (9.1 | F44: =J44*MAX('Исходные данные'!L59,'Исходные данные'!L63) -> 1712.49 | G44: - | H44: - | J44: 1.3
A45: 3.2 | B45: Уставка тока срабатывания ТО ВН по условию отстройки от БТН, А | D45: (9.2 | F45: =J45*F13 -> 1204.90491 | G45: - | H45: - | J45: 6
A46: 3.3 | B46: Выбранное значение уставки тока срабатывания ТО ВН, А | D46: - | E46: - | F46: =MAX(F44:F45) -> 1712.49 | G46: максимальное значение из п.п. 3.1 и 3.2 | H46: =ROUNDUP(F46/'Исходные данные'!Q33,2) -> 8.57
A47: 3.4 | B47: Коэффициент чувствительности ТО ВН | D47: (9.3 | F47: =(3^0.5*'Исходные данные'!L56)/(2*'Расчет уставок'!F46) -> 1.1021976 | G47: Проверку чувствительности следует выполнять в случае неиспользования ДЗТ | H47: -
A48: 3.5 | B48: Уставка задержки срабатывания ТО ВН, с | D48: - | E48: - | F48: - | G48: В соответствии с п. 9.2.1 | H48: 0
A49: 4. Максимальная токовая защита стороны НН (МТЗ НН)
A50: 4.1 | B50: Номинальный ток стороны НН, приведенный к стороне ВН, А | D50: 10.1 | F50: ='Исходные данные'!L17/(3^0.5*'Исходные данные'!L21*'Исходные данные'!L24) -> 200.8174849 | G50: - | H50: -
A51: 4.2 | B51: Уставка тока срабатывания МТЗ НН по условию отстройки от режима самозапуска, А | D51: 10.2 | F51: =J51*J52*J54*F50/J53 -> 1775.64934 | G51: - | H51: - | J51: 1.2
J52: ='Исходные данные'!G43 -> 5
J53: 0.95
J54: ='Исходные данные'!L42 -> 1.4
A55: 4.3 | B55: Уставка тока срабатывания МТЗ НН по условию согласования с МТЗ предыдущего элемента, А | D55: 10.3 | F55: =IF(ISNUMBER('Исходные данные'!L77),J55*('Исходные данные'!L77+'Исходные данные'!L48*'Расчет уставок'!F50),"-") -> 325.1294634 | G55: Согласование с уставкой МТЗ на СВ НН | H55: - | J55: 1.1
A56: 4.4 | B56: Коэффициент чувствительности МТЗ НН к КЗ на шинах НН | D56: 10.4 | F56: =(3^0.5*'Исходные данные'!L64)/(2*MAX(F51,F55)) -> 0.3475515625 | G56: =IF(F56<1.5,"кч не удовлетворяет требованиям ПУЭ. Следует использовать пуск по напряжению","кч удовлетворяет требованиям ПУЭ") -> кч не удовлетворяет требованиям ПУЭ. Следует использовать пуск по напряжению | H56: -
A57: 4.5 | B57: Коэффициент чувствительности МТЗ НН к КЗ в конце зоны резервирования | D57: 10.4 | F57: =(3^0.5*'Исходные данные'!L70)/(2*MAX(F51,F55)) -> 0.2975111607 | G57: =IF(F57<1.2,"кч не удовлетворяет требованиям ПУЭ. Следует использовать пуск по напряжению","кч удовлетворяет требованиям ПУЭ") -> кч не удовлетворяет требованиям ПУЭ. Следует использовать пуск по напряжению | H57: -
A58: 4.6 | B58: Пересчет уставки тока срабатывания МТЗ НН по условию отстройки от режима длительно допустимой перегрузки (без учета самозапуска), А | D58: 10.2 | F58: =(J51*J54*F50)/J53 -> 355.1298681 | G58: Значение уставки, пересчитанное без учета режима самозапуска | H58: -
A59: 4.7 | B59: Коэффициент чувствительности МТЗ НН к КЗ на шинах НН | D59: 10.4 | F59: =(3^0.5*'Исходные данные'!L64)/(2*MAX(F58,F55)) -> 1.737757812 | G59: =IF(F59<1.5,"кч не удовлетворяет требованиям ПУЭ","кч удовлетворяет требованиям ПУЭ") -> кч удовлетворяет требованиям ПУЭ | H59: -
A60: 4.8 | B60: Коэффициент чувствительности МТЗ НН к КЗ в конце зоны резервирования | D60: 10.4 | F60: =(3^0.5*'Исходные данные'!L70)/(2*MAX(F58,F55)) -> 1.487555804 | G60: =IF(F60<1.2,"кч не удовлетворяет требованиям ПУЭ","кч удовлетворяет требованиям ПУЭ") -> кч удовлетворяет требованиям ПУЭ | H60: -
A61: 4.9 | B61: Выбранное значение уставки МТЗ НН, А | D61: - | E61: - | F61: =IF(OR(F56<1.5,F57<1.2),MAX(F55,F58),MAX(F51,F55)) -> 355.1298681 | G61: максимальное значение из п.п. 4.6 и 4.3 | H61: =ROUNDUP(F61/'Исходные данные'!Q37*'Исходные данные'!L19/'Исходные данные'!L21,2) -> 15.47
A62: 4.10 | B62: Уставка задержки срабатывания МТЗ НН на отключение ВВ НН, с | D62: - | F62: ='Исходные данные'!L78+'Расчет уставок'!J62 -> 2.3 | G62: Значение ступени селективности принято равным 0,3 с | H62: =ROUNDUP(F62,2) -> 2.3 | J62: 0.3
A63: 4.11 | B63: Уставка задержки отключения трансформатора от МТЗ НН, с | D63: - | F63: =J62 -> 0.3 | G63: Значение ступени селективности принято равным 0,3 с | H63: =ROUNDUP(F63,2) -> 0.3
A64: 5. Максимальная токовая защита стороны СН (МТЗ СН)
A65: 5.1 | B65: Номинальный ток стороны СН, приведенный к стороне ВН, А | D65: 11.1 | F65: ='Исходные данные'!L16/(3^0.5*'Исходные данные'!L20*'Исходные данные'!L23) -> 200.8174849 | G65: - | H65: -
A66: 5.2 | B66: Уставка тока срабатывания МТЗ СН по условию отстройки от режима самозапуска, А | D66: 11.2 | F66: =(J66*J67*J69*F65)/J68 -> 1775.64934 | G66: - | H66: - | J66: 1.2
J67: ='Исходные данные'!G43 -> 5
J68: 0.95
J69: ='Исходные данные'!L42 -> 1.4
A70: 5.3 | B70: Уставка тока срабатывания МТЗ СН по условию согласования с МТЗ предыдущего элемента, А | D70: 11.3 | F70: =IF(ISNUMBER('Исходные данные'!L74),J70*('Исходные данные'!L74+'Исходные данные'!L44*F65),"-") -> 384.4194634 | G70: Согласование с уставкой МТЗ на СВ СН | H70: - | J70: 1.1
A71: 5.4 | B71: Коэффициент чувствительности МТЗ СН к КЗ на шинах СН | D71: 11.4 | F71: =(3^0.5*'Исходные данные'!L60)/(2*MAX('Расчет уставок'!F66,'Расчет уставок'!F70)) -> 0.4889425223 | G71: =IF(F71<1.5,"кч не удовлетворяет требованиям ПУЭ. Следует использовать пуск по напряжению","кч удовлетворяет требованиям ПУЭ") -> кч не удовлетворяет требованиям ПУЭ. Следует использовать пуск по напряжению | H71: -
A72: 5.5 | B72: Коэффициент чувствительности МТЗ СН к КЗ в конце зоны резервирования | D72: 11.4 | F72: =(3^0.5*'Исходные данные'!L67)/(2*MAX('Расчет уставок'!F66,'Расчет уставок'!F70)) -> 0.3672555804 | G72: =IF(F72<1.2,"кч не удовлетворяет требованиям ПУЭ. Следует использовать пуск по напряжению","кч удовлетворяет требованиям ПУЭ") -> кч не удовлетворяет требованиям ПУЭ. Следует использовать пуск по напряжению | H72: -
A73: 5.6 | B73: Пересчет уставки тока срабатывания МТЗ СН по условию отстройки от режима длительно допустимой перегрузки (без учета самозапуска), А | D73: 11.2 | F73: =(J66*J69*F65)/J68 -> 355.1298681 | G73: Значение уставки, пересчитанное без учета режима самозапуска | H73: -
A74: 5.7 | B74: Коэффициент чувствительности МТЗ СН к КЗ на шинах СН | D74: 11.4 | F74: =(3^0.5*'Исходные данные'!L60)/(2*MAX('Расчет уставок'!F70,'Расчет уставок'!F73)) -> 2.258445656 | G74: =IF(F74<1.5,"кч не удовлетворяет требованиям ПУЭ","кч удовлетворяет требованиям ПУЭ") -> кч удовлетворяет требованиям ПУЭ | H74: -
A75: 5.8 | B75: Коэффициент чувствительности МТЗ СН к КЗ в конце зоны резервирования | D75: 11.4 | F75: =(3^0.5*'Исходные данные'!L67)/(2*MAX('Расчет уставок'!F70,'Расчет уставок'!F73)) -> 1.696368658 | G75: =IF(F75<1.2,"кч не удовлетворяет требованиям ПУЭ","кч удовлетворяет требованиям ПУЭ") -> кч удовлетворяет требованиям ПУЭ | H75: -
A76: 5.9 | B76: Выбранное значение уставки МТЗ СН, А | D76: - | E76: - | F76: =IF(OR(F71<1.5,F72<1.2),MAX(F73,F70),MAX(F66,F70)) -> 384.4194634 | G76: максимальное значение из п.п. 5.6 и 5.3 | H76: =ROUNDUP(F76/'Исходные данные'!Q35*'Исходные данные'!L19/'Исходные данные'!L20,2) -> 5.75
A77: 5.10 | B77: Уставка задержки срабатывания МТЗ СН на отключение ВВ СН, с | D77: - | F77: ='Исходные данные'!L75+'Расчет уставок'!J77 -> 2.3 | G77: Значение ступени селективности принято равным 0,3 с | H77: =ROUNDUP(F77,2) -> 2.3 | J77: 0.3
A78: 5.11 | B78: Уставка задержки отключения трансформатора от МТЗ СН, с | D78: - | F78: =J77 -> 0.3 | G78: Значение ступени селективности принято равным 0,3 с | H78: =ROUNDUP(F78,2) -> 0.3
A79: 6. Максимальная токовая защита стороны ВН (МТЗ ВН)
A80: 6.1 | B80: Уставка тока срабатывания МТЗ ВН по условию отстройки от режима самозапуска, А | D80: 12.1 | F80: =(J80*J81*J83*F13)/J82 -> 1775.64934 | G80: - | H80: - | J80: 1.2
J81: ='Исходные данные'!G43 -> 5
J82: 0.95
J83: ='Исходные данные'!L42 -> 1.4
A84: 6.2 | B84: Уставка тока срабатывания МТЗ ВН по условию согласования с МТЗ предыдущего элемента, А | D84: 12.2 | F84: =J84*MAX(F76,F61) -> 422.8614097 | G84: Согласование с уставкой МТЗ НН | H84: - | J84: 1.1
A85: 6.3 | B85: Коэффициент чувствительности МТЗ ВН к КЗ на шинах НН | D85: 12.3 | F85: =J85*MIN('Исходные данные'!L60,'Исходные данные'!L64)/MAX('Расчет уставок'!F80,'Расчет уставок'!F84) -> 0.4013179763 | G85: =IF(F85<'Исходные данные'!G47,"кч не удовлетворяет требованиям ПУЭ. Следует использовать пуск по напряжению","кч удовлетворяет требованиям ПУЭ") -> кч не удовлетворяет требованиям ПУЭ. Следует использовать пуск по напряжению | H85: - | J85: ='Исходные данные'!J62 -> 1
A86: 6.4 | B86: Пересчет уставки тока срабатывания МТЗ ВН по условию отстройки от режима длительно допустимой перегрузки (без учета самозапуска), А | D86: 12.1 | F86: =(J80*J83*F13)/J82 -> 355.1298681 | G86: Значение уставки, пересчитанное без учета режима самозапуска | H86: -
A87: 6.5 | B87: Коэффициент чувствительности МТЗ ВН к минимальному из токов КЗ на шинах СН и НН | D87: 12.3 | F87: =J85*MIN('Исходные данные'!L64,'Исходные данные'!L60)/MAX(F84,F86) -> 1.685185698 | G87: =IF(F87<'Исходные данные'!G47,"кч не удовлетворяет требованиям ПУЭ","кч удовлетворяет требованиям ПУЭ") -> кч удовлетворяет требованиям ПУЭ | H87: -
A88: 6.6 | B88: Выбранное значение уставки МТЗ ВН, А | D88: - | E88: - | F88: =IF(F85<'Исходные данные'!G47,MAX(F84,F86),MAX(F84,F80)) -> 422.8614097 | G88: максимальное значение из п.п. 6.2 и 6.4 | H88: =ROUNDUP(F88/'Исходные данные'!Q33,2) -> 2.12
A89: 6.7 | B89: Уставка задержки срабатывания МТЗ ВН, с | D89: - | F89: =MAX(H62,H77) -> 2.3 | G89: Значение ступени селективности принято равным 0,3 с | H89: =ROUNDUP(F89+J89,2) -> 2.6 | J89: 0.3
A90: 7. Защита от перегрузки (ЗП)
A91: 7.1 | B91: Уставка тока срабатывания защиты от перегрузки, А | D91: 13.1 | F91: =J91*F13/J92 -> 221.9561676 | G91: - | H91: =ROUNDUP(F91/'Исходные данные'!Q33,2) -> 1.11 | J91: 1.05
J92: 0.95
A93: 7.2 | B93: Уставка задержки срабатывания ЗП, с | D93: - | E93: - | F93: - | G93: В соответствии с п. 13.2.2 | H93: 9
A94: 8. Газовая защита (ГЗ)
A95: 8.1 | B95: Уставка задержки срабатывания первой ступени ГЗ, с | D95: - | E95: - | F95: 0 | G95: В соответствии с п. 14.2.1 | H95: =F95 -> 0
A96: 8.2 | B96: Уставка задержки срабатывания второй ступени ГЗ, с | D96: - | E96: - | F96: 0 | G96: В соответствии с п. 14.2.1 | H96: =F96 -> 0
A97: 8.3 | B97: Уставка задержки срабатывания ГЗ РПН, с | D97: - | E97: - | F97: 0 | G97: В соответствии с п. 14.2.1 | H97: 0
A98: 8.4 | B98: Уставка задержки срабатывания контроля изоляции цепей ГЗ, с | D98: - | E98: - | F98: 0 | G98: В соответствии с п. 14.2.2 | H98: 0
A99: 8.5 | B99: Уставка задержки срабатывания сигнализации отсутствия питания цепей ГЗ, с | D99: - | E99: - | F99: 10 | G99: Отстроена с запасом от времени действия защит и АВР цепей питания | H99: 10
A100: 9. УРОВ
A101: 9.1 | B101: Уставка токового органа УРОВ стороны ВН, А | D101: - | E101: - | F101: =IF(F4=5,0.5,0.1) -> 0.5 | G101: В соответствии с п. 15.2.1 | H101: =F101 -> 0.5
A102: 9.2 | B102: Уставка задержки срабатывания УРОВ стороны ВН, с | D102: 16.1 | F102: =IF(J102+J103+J104<0.2,0.2,J102+J103+J104) -> 0.2 | G102: В соответствии с п. 15.2.1 | H102: =ROUNDUP(MAX(0.2,F102),2) -> 0.2 | J102: 0.045
J103: 0.02
J104: 0.1
A105: 9.3 | B105: Уставка токового органа УРОВ стороны СН, А | D105: - | E105: - | F105: =IF(F6=5,0.5,0.1) -> 0.5 | G105: В соответствии с п. 15.2.1 | H105: =F105 -> 0.5
A106: 9.4 | B106: Уставка задержки срабатывания УРОВ стороны СН, с | D106: 16.1 | F106: =IF(J106+J107+J108<0.2,0.2,J106+J107+J108) -> 0.2 | G106: В соответствии с п. 15.2.1 | H106: =ROUNDUP(MAX(0.2,F106),2) -> 0.2 | J106: 0.045
J107: 0.02
J108: 0.1

Sheet Результаты расчета
A1: Уставка | B1: Обозначение | C1: Значение для ввода в устройство
A2: Номинальный ток диапазона измерений токов стороны ВН, А | C2: ='Расчет уставок'!$H$4 -> 5
A3: Номинальный ток диапазона измерений токов стороны СН, А | C3: ='Расчет уставок'!$H$6 -> 5
A4: Номинальный ток диапазона измерений токов стороны НН, А | C4: ='Расчет уставок'!$H$8 -> 5
A5: ДТО и ДЗТ
A6: Ток срабатывания ДТО, о.е. | C6: ='Расчет уставок'!H21 -> 6
A7: Ток начала торможения первого участка ДЗТ, о.е. | C7: ='Расчет уставок'!H22 -> 1
A8: Ток начала торможения второго участка ДЗТ, о.е. | C8: ='Расчет уставок'!H23 -> 2
A9: Начальный ток срабатывания ДЗТ, о.е. | C9: ='Расчет уставок'!H27 -> 0.41
A10: Коэффициент торможения первого участка ДЗТ | C10: ='Расчет уставок'!H32 -> 0.53 | H10: ДЗТ | J10: ДЗТ | L10: Небаланс
A11: Коэффициент торможения второго участка ДЗТ | C11: ='Расчет уставок'!H34 -> 0.98 | H11: 0 | I11: =C9 -> 0.41 | J11: 0 | K11: =C6 -> 6 | L11: =J11 -> 0 | M11: =C15 -> 0.33
A12: Задержка срабатывания ДЗТ, с | C12: ='Расчет уставок'!H35 -> 0 | H12: =C8 -> 2 | I12: =(C9+(C8-C7)*C10) -> 0.94
A13: Уставка блокирования ДЗТ по второй гармонике, о.е. | C13: ='Расчет уставок'!H36 -> 0.15 | H13: ='Расчет уставок'!F33 -> 5.050303614 | I13: =C6 -> 6
A14: Максимальная длительность перекрестного блокирования по 2 гармонике, с | C14: ='Расчет уставок'!H37 -> 2
A15: Ток срабатывания сигнализации небаланса, о.е. | C15: ='Расчет уставок'!$H$41 -> 0.33
A16: Задержка срабатывания сигнализации небаланса, с | C16: ='Расчет уставок'!$H$42 -> 10
A17: ТО ВН
A18: Ток срабатывания ТО ВН, А | C18: ='Расчет уставок'!$H$46 -> 8.57
A19: Задержка срабатывания ТО ВН, с | C19: ='Расчет уставок'!$H$48 -> 0
A20: МТЗ НН
A21: Ток срабатывания МТЗ НН, А | C21: ='Расчет уставок'!H61 -> 15.47
A22: Задержка срабатывания МТЗ НН на отключение ВВ НН, с | C22: ='Расчет уставок'!H62 -> 2.3
A23: Задержка отключения трансформатора от МТЗ НН, с | C23: ='Расчет уставок'!H63 -> 0.3
A24: МТЗ СН
A25: Ток срабатывания МТЗ СН, А | C25: ='Расчет уставок'!H76 -> 5.75
A26: Задержка срабатывания МТЗ НС на отключение ВВ СН, с | C26: ='Расчет уставок'!H77 -> 2.3
A27: Задержка отключения трансформатора от МТЗ СН, с | C27: ='Расчет уставок'!H78 -> 0.3
A28: МТЗ ВН
A29: Ток срабатывания МТЗ ВН, А | C29: ='Расчет уставок'!H88 -> 2.12
A30: Задержка срабатывания МТЗ ВН, с | C30: ='Расчет уставок'!H89 -> 2.6
A31: ЗП
A32: Ток срабатывания защиты от перегрузки, А | C32: ='Расчет уставок'!H91 -> 1.11
A33: Задержка срабатывания ЗП, с | C33: ='Расчет уставок'!H93 -> 9
A34: ГЗ
A35: Задержка срабатывания первой ступени ГЗ, с | C35: ='Расчет уставок'!H95 -> 0
A36: Задержка срабатывания второй ступени ГЗ, с | C36: ='Расчет уставок'!H96 -> 0
A37: Задержка срабатывания ГЗ РПН, с | C37: ='Расчет уставок'!H97 -> 0
A38: Задержка срабатывания контроля изоляции цепей ГЗ, с | C38: ='Расчет уставок'!H98 -> 0
A39: Задержка срабатывания сигнализации отсутствия питания цепей ГЗ, с | C39: ='Расчет уставок'!H99 -> 10
A40: УРОВ
A41: Уставка токового органа УРОВ СН, А | C41: ='Расчет уставок'!H101 -> 0.5
A42: Задержка срабатывания УРОВ СН, с | C42: ='Расчет уставок'!H102 -> 0.2
A43: Уставка токового органа УРОВ НН, А | C43: ='Расчет уставок'!H105 -> 0.5
A44: Задержка срабатывания УРОВ НН, с | C44: ='Расчет уставок'!H106 -> 0.2
